fUSD/lending_fUSD_20260404
["ID","MTS","AMOUNT","RATE_DAILY","PERIOD"]
[419693520,1775299841911,-500.0,0.00015799,2]
[419693521,1775299841920,-500.0,0.00015799,2]
[419693522,1775299841930,-502.29456068,0.00015799,2]
[419693523,1775299841939,-500.0,0.00015799,2]
[419693524,1775299841949,-500.0,0.00015799,2]
[419693525,1775299841958,-2009.0,0.000158,5]
[419693526,1775299841968,-1204352.0616,0.000158,2]
[419693527,1775299841977,-151.0,0.000158,2]
[419693528,1775299841987,-151.0,0.000158,2]
[419693529,1775299841996,-151.0,0.000158,2]
[419693530,1775299842006,-151.0,0.000158,2]
[419693531,1775299842015,-151.0,0.000158,2]
[419693532,1775299842025,-151.0,0.000158,2]
[419693533,1775299842034,-986.54432,0.000158,2]
[419693534,1775299842043,-710.293842,0.000158,2]
[419693535,1775299842053,-986.54432,0.000158,2]
[419693536,1775299842063,-710.293842,0.000158,2]
[419693537,1775299842073,-986.54432,0.000158,2]
[419693538,1775299842083,-710.293842,0.000158,2]
[419693539,1775299842093,-986.54432,0.000158,2]
[419693540,1775299842103,-710.293842,0.000158,2]
[419693541,1775299842113,-151.0,0.000158,2]
[419693542,1775299842123,-151.0,0.000158,2]
[419693543,1775299842132,-151.0,0.000158,2]
[419693544,1775299842142,-2911.0,0.000158,2]
[419693545,1775299842152,-564.386799,0.000158,2]
[419693546,1775299842161,-564.386799,0.000158,2]
[419693547,1775299842171,-387.850416,0.000158,2]
[419693548,1775299842180,-564.386799,0.000158,2]
[419693549,1775299842189,-387.850416,0.000158,2]
[419693550,1775299842200,-564.386799,0.000158,2]
[419693551,1775299842209,-387.850416,0.000158,2]
[419693552,1775299842219,-387.850416,0.000158,2]
[419693553,1775299842228,-151.0,0.000158,2]
[419693554,1775299842238,-168.0,0.00015809,2]
[419693555,1775299842247,-1466.97617,0.0001581,2]
[419693556,1775299842257,-1466.97618,0.0001581,2]
[419693557,1775299842266,-1466.97618,0.0001582,2]
[419693558,1775299842276,-159.0,0.00015829,2]
[419693559,1775299842285,-1000.0,0.00015846,2]
[419693560,1775299842294,-1000.0,0.00015853,2]
[419693561,1775299842304,-200.0,0.00015859,2]
[419693562,1775299842314,-1000.0,0.00015868,2]
[419693563,1775299842325,-1000.0,0.00015869,2]
[419693564,1775299842334,-159.0,0.00015874,2]
[419693565,1775299842344,-500.0,0.0001589,2]
[419693567,1775299842355,-500.0,0.0001589,2]
[419693569,1775299842364,-500.0,0.0001589,2]
[419693570,1775299842373,-500.0,0.0001589,2]
[419693571,1775299842383,-500.0,0.0001589,2]
[419693572,1775299842392,-2000.0,0.0001589,2]
[419693573,1775299842402,-1000.0,0.00015891,2]
[419693574,1775299842411,-2024.25,0.00015895,2]
[419693575,1775299842421,-500.0,0.00015899,2]
[419693576,1775299842430,-500.0,0.00015899,2]
[419693577,1775299842440,-3209.20322967,0.000159,3]
[419693578,1775299842450,-1000.0,0.000159,2]
[419693579,1775299842460,-33024.725,0.000159,2]
[419693586,1775299842717,-624.40125456,0.000159,2]
[419693587,1775299842727,-3701.28404144,0.000159,2]
[419693588,1775299842738,-4675.10224148,0.000159,2]
[419693589,1775299842747,-387.54543301,0.000159,2]
[419693590,1775299842756,-634.59222786,0.000159,2]
[419693591,1775299842766,-284.30105278,0.00015901,2]
[419693592,1775299842775,-2000.0,0.00015901,2]
[419693593,1775299842785,-443.45,0.00015903,2]
[419693594,1775299842794,-1000.0,0.0001591,2]
[419693595,1775299842804,-214.0,0.00015913,2]
[419693596,1775299842813,-1000.0,0.00015922,2]
[419693597,1775299842822,-152.0,0.00015942,2]
[419693598,1775299842831,-152.0,0.00015942,2]
[419693599,1775299842840,-152.0306331,0.00015942,2]
[419693600,1775299842850,-1000.0,0.0001595,2]
[419693601,1775299842859,-1000.0,0.00015962,2]
[419693602,1775299842868,-513.6791618,0.00015973,2]
[419693603,1775299842877,-501.06405699,0.00015973,2]
[419693604,1775299842887,-381.20749087,0.00015973,2]
[419693605,1775299842896,-501.09720442,0.00015973,2]
[419693606,1775299842906,-500.0,0.00015973,2]
[419693607,1775299842915,-500.0,0.00015973,2]
[419693608,1775299842924,-501.7767113,0.00015973,2]
[419693609,1775299842934,-500.0,0.00015973,2]
[419693610,1775299842943,-501.46955268,0.00015973,2]
[419693611,1775299842952,-500.0,0.00015973,2]
[419693612,1775299842962,-500.0,0.00015973,2]
[419693613,1775299842971,-500.0,0.00015973,2]
[419693614,1775299842981,-504.78279466,0.00015973,2]
[419693615,1775299842991,-500.0,0.00015973,2]
[419693616,1775299843000,-500.0,0.00015973,2]
[419693617,1775299843009,-500.0,0.00015973,2]
[419693618,1775299843019,-500.0,0.00015973,2]
[419693619,1775299843029,-500.95538511,0.00015973,2]
[419693620,1775299843039,-500.0,0.00015973,2]
[419693621,1775299843048,-500.0,0.00015973,2]
[419693622,1775299843059,-502.50396437,0.00015973,2]
[419693623,1775299843068,-500.30998217,0.00015973,2]
[419693624,1775299843078,-166.78281568,0.00015973,2]
[419693625,1775299843087,-500.44413655,0.00015973,2]
[419693626,1775299843097,-474.3667731,0.00015973,2]
[419693627,1775299843107,-163.04685463,0.00015973,2]
[419693628,1775299843117,-164.32614955,0.00015973,2]
[419693629,1775299843126,-500.0,0.00015973,2]
[419693630,1775299843136,-192.64718767,0.00015973,2]
[419693631,1775299843146,-163.76977921,0.00015973,2]
[419693632,1775299843155,-159.77397605,0.00015973,2]
[419693633,1775299843165,-501.3592372,0.00015973,2]
[419693634,1775299843175,-500.0,0.00015973,2]
[419693635,1775299843184,-500.47064979,0.00015973,2]
[419693636,1775299843194,-352.18026618,0.00015973,2]
[419693637,1775299843204,-500.0,0.00015973,2]
[419693638,1775299843214,-185.8713019,0.00015973,2]
[419693639,1775299843223,-293.470487,0.00015973,2]
[419693640,1775299843233,-1466.97618,0.00015973,2]
[419693641,1775299843243,-1466.97618,0.00015973,2]
[419693642,1775299843253,-1466.97618,0.00015973,2]
[419693643,1775299843263,-564.386799,0.00015973,2]
[419693644,1775299843273,-564.386799,0.00015973,2]
[419693645,1775299843282,-387.850416,0.00015973,2]
[419693646,1775299843292,-564.386799,0.00015973,2]
[419693647,1775299843301,-387.850416,0.00015973,2]
[419693648,1775299843311,-564.386799,0.00015973,2]
[419693649,1775299843320,-387.850416,0.00015973,2]
[419693650,1775299843330,-387.850416,0.00015973,2]
[419693651,1775299843340,-191.678904,0.00015973,2]
[419693652,1775299843350,-168.0,0.00015979,2]
[419693653,1775299843360,-189.27023912,0.0001598,2]
[419693654,1775299843370,-986.54432,0.0001598,2]
[419693655,1775299843379,-710.293842,0.0001598,2]
[419693656,1775299843388,-986.54432,0.0001598,2]
[419693657,1775299843398,-710.293842,0.0001598,2]
[419693658,1775299843408,-986.54432,0.0001598,2]
[419693659,1775299843417,-710.293842,0.0001598,2]
[419693660,1775299843427,-986.54432,0.0001598,2]
[419693661,1775299843438,-710.293842,0.0001598,2]
[419693662,1775299843448,-151.0,0.0001598,2]
[419693663,1775299843457,-299.158801,0.0001598,2]
[419693664,1775299843468,-179.70980272,0.00015984,2]
[419693665,1775299843478,-159.14353868,0.00015984,2]
[419693666,1775299843488,-156.46648667,0.00015984,2]
[419693667,1775299843498,-199.84509773,0.00015984,2]
[419693668,1775299843507,-253.03045373,0.00015984,2]
[419693669,1775299843516,-231.60029698,0.00015984,2]
[419693670,1775299843526,-403.86434423,0.00015984,2]
[419693672,1775299843535,-151.19541036,0.00015984,2]
[419693674,1775299843545,-198.22737045,0.00015984,2]
[419693675,1775299843555,-165.18345572,0.00015984,2]
[419693676,1775299843565,-525.93276566,0.00015984,2]
[419693677,1775299843574,-232.31735243,0.00015984,2]
[419693678,1775299843583,-366.5292795,0.00015984,2]
[419693679,1775299843592,-227.77685556,0.00015984,2]
[419693680,1775299843602,-293.80041052,0.00015984,2]
[419693681,1775299843611,-253.03726292,0.00015984,2]
[419693682,1775299843620,-197.75088315,0.00015984,2]
[419693683,1775299843630,-194.26334793,0.00015984,2]
[419693684,1775299843639,-204.12307404,0.00015984,2]
[419693685,1775299843648,-613.78588722,0.0001599,2]
[419693686,1775299843658,-613.78588722,0.0001599,2]
[419693687,1775299843668,-161.57925816,0.00015991,2]
[419693688,1775299843677,-1000.0,0.00015994,2]
[419693689,1775299843687,-151.0,0.00015997,2]
[419693690,1775299843696,-1000.0,0.00015998,2]
[419693691,1775299843706,-166.66,0.00015998,2]
[419693692,1775299843716,-666.0,0.00015999,2]
[419693693,1775299843725,-666.0,0.00015999,2]
[419693694,1775299843735,-370.0,0.00015999,2]
[419693695,1775299843745,-155.0,0.00015999,2]
[419693696,1775299843754,-151.0,0.00015999,2]
[419693697,1775299843764,-151.0,0.00015999,2]
[419693698,1775299843774,-151.0,0.00015999,2]
[419693699,1775299843784,-151.0,0.00015999,2]
[419693700,1775299843793,-500.0,0.00015999,2]
[419693701,1775299843803,-500.0,0.00015999,2]
[419693702,1775299843813,-500.0,0.00015999,2]
[419693703,1775299843823,-500.0,0.00015999,2]
[419693704,1775299843832,-500.0,0.00015999,2]
[419693705,1775299843842,-500.0,0.00015999,2]
[419693706,1775299843851,-500.0,0.00015999,2]
[419693707,1775299843861,-500.0,0.00015999,2]
[419693708,1775299843871,-500.0,0.00015999,2]
[419693709,1775299843881,-500.0,0.00015999,2]
[419693710,1775299843891,-500.0,0.00015999,2]
[419693711,1775299843900,-500.0,0.00015999,2]
[419693712,1775299843910,-500.0,0.00015999,2]
[419693713,1775299843920,-500.0,0.00015999,2]
[419693714,1775299843930,-500.0,0.00015999,2]
[419693715,1775299843940,-500.0,0.00015999,2]
[419693716,1775299843951,-500.0,0.00015999,2]
[419693717,1775299843960,-500.0,0.00015999,2]
[419693718,1775299843970,-500.0,0.00015999,2]
[419693719,1775299843980,-500.0,0.00015999,2]
[419693720,1775299843990,-500.0,0.00015999,2]
[419693721,1775299843999,-500.0,0.00015999,2]
[419693722,1775299844009,-500.0,0.00015999,2]
[419693723,1775299844018,-500.0,0.00015999,2]
[419693724,1775299844028,-500.0,0.00015999,2]
[419693725,1775299844037,-500.0,0.00015999,2]
[419693726,1775299844047,-500.0,0.00015999,2]
[419693727,1775299844057,-500.0,0.00015999,2]
[419693728,1775299844067,-500.0,0.00015999,2]
[419693729,1775299844076,-500.0,0.00015999,2]
[419693730,1775299844086,-500.0,0.00015999,2]
[419693731,1775299844096,-500.0,0.00015999,2]
[419693732,1775299844105,-500.0,0.00015999,2]
[419693733,1775299844114,-500.0,0.00015999,2]
[419693734,1775299844124,-500.0,0.00015999,2]
[419693735,1775299844133,-500.0,0.00015999,2]
[419693736,1775299844142,-500.0,0.00015999,2]
[419693737,1775299844152,-500.0,0.00015999,2]
[419693738,1775299844161,-500.0,0.00015999,2]
[419693739,1775299844170,-500.0,0.00015999,2]
[419693740,1775299844179,-500.0,0.00015999,2]
[419693741,1775299844189,-500.0,0.00015999,2]
[419693742,1775299844198,-500.0,0.00015999,2]
[419693743,1775299844208,-500.0,0.00015999,2]
[419693744,1775299844218,-500.0,0.00015999,2]
[419693745,1775299844228,-520.24272845,0.00015999,2]
[419693746,1775299844237,-500.0,0.00015999,2]
[419693747,1775299844247,-500.0,0.00015999,2]
[419693748,1775299844256,-500.0,0.00015999,2]
[419693749,1775299844265,-500.0,0.00015999,2]
[419693750,1775299844275,-500.0,0.00015999,2]
[419693751,1775299844284,-186.15865542,0.00015999,2]
[419693752,1775299844293,-151.0,0.00015999,2]
[419693753,1775299844303,-2514.0,0.00016,5]
[419693754,1775299844313,-184.12346237,0.00016,2]
[419693755,1775299844325,-274.81594908,0.00016,2]
[419693756,1775299844335,-258.12173445,0.00016,2]
[419693757,1775299844345,-153.19744014,0.00016,2]
[419693758,1775299844356,-256.52934676,0.00016,2]
[419693759,1775299844367,-234.30356262,0.00016,2]
[419693760,1775299844376,-267.43073148,0.00016,2]
[419693761,1775299844387,-153.9648714,0.00016,2]
[419693762,1775299844397,-287.70807985,0.00016,2]
[419693763,1775299844407,-207.13368263,0.00016,2]
[419693764,1775299844416,-185.86725558,0.00016,2]
[419693765,1775299844426,-245.90319664,0.00016,2]
[419693766,1775299844436,-2037739.0754093,0.00016,2]
[419693767,1775299844859,-12089.99999648,0.00016,2]
[419693768,1775299844882,-9921.03391152,0.00016,2]
[419693769,1775299844895,-65999.99999999,0.00016,2]
[419693770,1775299844907,-15696.80727125,0.00016,2]
[419693771,1775299844919,-400.0,0.00016,2]
[419693772,1775299844935,-1741.01229121,0.00016,2]
[419693773,1775299844951,-3300.0,0.00016,2]
[419693774,1775299844966,-12329.60617189,0.00016,2]
[419693775,1775299844978,-591.49714076,0.00016,2]
[419693776,1775299845402,-344.66,0.00016,2]
[419693780,1775299846858,-159.31825877,0.0001598,2]
[419693781,1775299846868,-831.454415,0.00016,2]
[419693782,1775299846883,-1058.1999997,0.00016,2]
[419693788,1775300738814,-250.0,0.00013,2]
[419693789,1775300776791,150.0,0.00012718,2]
[419693790,1775300851968,2623.01791989,0.00012999,2]
[419693794,1775301038024,-300.0,0.00012998,2]
[419693795,1775301038034,-19.84422106,0.00012998,2]
[419693800,1775301040058,-280.15577894,0.00012998,2]
[419693801,1775301040068,-46901.60514689,0.00012999,2]
[419693802,1775301040078,-502.0,0.00013111,2]
[419693803,1775301040087,-166.66,0.00013926,2]
[419693804,1775301040097,-1800.0,0.00014082,2]
[419693805,1775301040107,-800.0,0.00014082,2]
[419693806,1775301040117,-166.66,0.0001422,2]
[419693807,1775301040128,-420.0,0.00014255,2]
[419693808,1775301040138,-500.0,0.00014298,2]
[419693809,1775301040148,-195.0,0.00014298,2]
[419693810,1775301040158,-195.0,0.00014298,2]
[419693811,1775301040169,-500.0,0.00014298,2]
[419693812,1775301040178,-195.0,0.00014299,2]
[419693813,1775301040187,-195.0,0.00014299,2]
[419693814,1775301040196,-2500.0,0.00014299,2]
[419693815,1775301040206,-2500.0,0.00014299,2]
[419693816,1775301040215,-2500.0,0.00014299,2]
[419693817,1775301040225,-2500.0,0.00014299,2]
[419693818,1775301040234,-2500.0,0.00014299,2]
[419693819,1775301040245,-500.0,0.00014299,2]
[419693820,1775301040254,-500.0,0.00014299,2]
[419693821,1775301040263,-222.05822308,0.00014299,2]
[419693822,1775301040272,-300.0,0.00014299,2]
[419693823,1775301040282,-300.0,0.00014299,2]
[419693824,1775301040292,-300.0,0.00014299,2]
[419693825,1775301040303,-300.0,0.00014299,2]
[419693826,1775301040313,-300.0,0.00014299,2]
[419693827,1775301040322,-195.0,0.000143,2]
[419693828,1775301040332,-150.0,0.000144,2]
[419693829,1775301040343,-150.0,0.000144,2]
[419693830,1775301040353,-150.0,0.000144,2]
[419693831,1775301040364,-150.0,0.000144,2]
[419693832,1775301040375,-256.52934676,0.000144,2]
[419693833,1775301040385,-287.70807985,0.000144,2]
[419693834,1775301040395,-150.0,0.000144,2]
[419693835,1775301040404,-153.9648714,0.000144,2]
[419693836,1775301040412,-150.0,0.000144,2]
[419693837,1775301040420,-150.0,0.000144,2]
[419693838,1775301040429,-854.76,0.00014403,2]
[419693839,1775301040438,-160.39,0.0001444,2]
[419693840,1775301040448,-166.66,0.00014513,2]
[419693841,1775301040457,-151.0,0.00014513,2]
[419693842,1775301040467,-151.0,0.00014513,2]
[419693843,1775301040477,-151.0,0.00014513,2]
[419693844,1775301040491,-151.0,0.00014513,2]
[419693845,1775301040501,-151.0,0.00014513,2]
[419693846,1775301040511,-151.0,0.00014513,2]
[419693847,1775301040522,-151.0,0.00014513,2]
[419693848,1775301040532,-151.0,0.00014513,2]
[419693849,1775301040543,-151.0,0.00014513,2]
[419693850,1775301040553,-151.0,0.00014513,2]
[419693851,1775301040563,-151.0,0.00014513,2]
[419693852,1775301040572,-1000.0,0.00014522,2]
[419693853,1775301040582,-84995.2835,0.00014522,2]
[419693854,1775301040591,-4859.7996,0.00014522,2]
[419693855,1775301040601,-200.0,0.00014552,2]
[419693856,1775301040612,-150.0,0.000146,2]
[419693857,1775301040621,-500.0,0.00014623,2]
[419693858,1775301040632,-500.0,0.00014623,2]
[419693859,1775301040642,-500.0,0.00014623,2]
[419693860,1775301040653,-2000.0,0.00014719,2]
[419693861,1775301040662,-150.0,0.0001472,2]
[419693862,1775301040673,-150.0,0.0001472,2]
[419693863,1775301040682,-150.0,0.0001472,2]
[419693864,1775301040693,-150.0,0.00014733,2]
[419693865,1775301040702,-174.61919141,0.00014747,2]
[419693866,1775301040713,-150.0,0.000148,2]
[419693867,1775301040723,-150.0,0.000148,2]
[419693868,1775301040733,-150.0,0.000148,2]
[419693869,1775301040743,-166.66,0.00014806,2]
[419693870,1775301040752,-150.0,0.00014933,2]
[419693871,1775301040762,-300.0,0.00015,2]
[419693872,1775301040771,-150.0,0.00015,2]
[419693873,1775301040780,-220417.06299307,0.00015,7]
[419693874,1775301040790,-150.0,0.0001504,2]
[419693875,1775301040799,-150.0,0.0001504,2]
[419693876,1775301040808,-150.0,0.0001504,2]
[419693877,1775301040817,-166.66,0.00015099,2]
[419693878,1775301040826,-150.0,0.000152,2]
[419693879,1775301040836,-150.0,0.000152,2]
[419693880,1775301040845,-150.0,0.000152,2]
[419693881,1775301040855,-166.67,0.00015213,2]
[419693882,1775301040864,-181.08010149,0.00015295,2]
[419693883,1775301040873,-200.0,0.000153,5]
[419693884,1775301040883,-500.0,0.00015324,2]
[419693885,1775301040893,-150.0,0.0001536,2]
[419693886,1775301040902,-150.0,0.0001536,2]
[419693887,1775301040911,-150.0,0.0001536,2]
[419693888,1775301040920,-350.0,0.00015362,2]
[419693889,1775301041255,-350.0,0.00015382,2]
[419693890,1775301041265,-166.66,0.00015392,2]
[419693891,1775301041275,-150.0,0.000154,2]
[419693892,1775301041285,-400.0,0.000154,5]
[419693893,1775301041295,-1800.0,0.00015452,2]
[419693894,1775301041304,-800.0,0.00015452,2]
[419693895,1775301041314,-150.0,0.00015467,2]
[419693896,1775301041323,-350.0,0.00015475,2]
[419693897,1775301041336,-600.0,0.000155,5]
[419693898,1775301041345,-150.0,0.000156,2]
[419693899,1775301041355,-150.0,0.000156,2]
[419693900,1775301041364,-150.0,0.000156,2]
[419693901,1775301041375,-900.0,0.000156,5]
[419693902,1775301041388,-587.0,0.00015632,2]
[419693903,1775301041399,-160.39,0.00015643,2]
[419693904,1775301041408,-150.0,0.0001568,2]
[419693905,1775301041419,-150.0,0.0001568,2]
[419693906,1775301041431,-150.0,0.0001568,2]
[419693907,1775301041441,-1100.0,0.000157,5]
[419693908,1775301041450,-350.0,0.00015706,2]
[419693909,1775301041460,-1000.0,0.00015743,2]
[419693910,1775301041470,-185.876,0.00015746,2]
[419693911,1775301041479,-3169.399,0.00015746,2]
[419693912,1775301041489,-2013.68731588,0.0001577,2]
[419693913,1775301041499,-2013.68731581,0.00015784,2]
[419693914,1775301041510,-2500.0,0.00015798,2]
[419693915,1775301041519,-2013.68731581,0.00015799,2]
[419693916,1775301041529,-500.0,0.00015799,2]
[419693917,1775301041538,-500.0,0.00015799,2]
[419693918,1775301041548,-186.15865542,0.00015799,2]
[419693919,1775301041558,-150.0,0.000158,2]
[419693920,1775301041568,-200.0,0.000158,5]
[419693921,1775301041577,-2259.03257639,0.00015807,2]
[419693922,1775301041586,-150.0,0.00015809,2]
[419693923,1775301041596,-1000.0,0.00015811,2]
[419693924,1775301041605,-2013.68731581,0.00015813,2]
[419693925,1775301041615,-2013.68731581,0.00015828,2]
[419693926,1775301041624,-2000.0,0.0001584,2]
[419693927,1775301041634,-2000.0,0.0001584,2]
[419693928,1775301041644,-2013.68731581,0.00015842,2]
[419693929,1775301041654,-187.78006525,0.00015843,2]
[419693930,1775301041663,-1972.56197763,0.00015848,2]
[419693931,1775301041673,-2000.0,0.0001585,2]
[419693932,1775301041682,-2013.68731581,0.00015857,2]
[419693933,1775301041692,-200.0,0.00015859,2]
[419693934,1775301041701,-1000.0,0.0001586,2]
[419693935,1775301041711,-200.0,0.00015871,2]
[419693936,1775301041721,-2013.68731581,0.00015871,2]
[419693937,1775301041732,-10000.0,0.00015873,2]
[419693938,1775301041742,-350.0,0.00015882,2]
[419693939,1775301041751,-2013.68731581,0.00015886,2]
[419693940,1775301041761,-500.0,0.0001589,2]
[419693941,1775301041770,-500.0,0.0001589,2]
[419693942,1775301041780,-500.0,0.0001589,2]
[419693943,1775301041790,-500.0,0.0001589,2]
[419693944,1775301041800,-500.0,0.0001589,2]
[419693945,1775301041810,-500.0,0.0001589,2]
[419693946,1775301041819,-500.0,0.0001589,2]
[419693947,1775301041829,-500.0,0.0001589,2]
[419693948,1775301041838,-184.84985572,0.00015896,2]
[419693949,1775301041848,-150.0,0.00015899,2]
[419693950,1775301041857,-68827.0416064,0.00015899,2]
[419693951,1775301041867,-169.20655523,0.000159,3]
[419693952,1775301041877,-150.0,0.000159,2]
[419693953,1775301041886,-413.6458839,0.000159,2]
[419693954,1775301041895,-150.0,0.000159,2]
[419693955,1775301041905,-5000.0,0.000159,2]
[419693956,1775301041914,-2013.68731581,0.000159,2]
[419693957,1775301041924,-150.0,0.000159,2]
[419693958,1775301041934,-2000.0,0.000159,2]
[419693959,1775301041944,-57658.68660929,0.000159,2]
[419693960,1775301041954,-200.0,0.000159,5]
[419693961,1775301041964,-150.0,0.000159,2]
[419693962,1775301041973,-151.12106257,0.000159,2]
[419693963,1775301041982,-5667.46241087,0.000159,2]
[419693964,1775301041991,-25559.75281378,0.000159,2]
[419693965,1775301042001,-663.62587502,0.00015901,2]
[419693966,1775301042011,-500.0,0.00015939,2]
[419693967,1775301042021,-500.0,0.00015939,2]
[419693968,1775301042032,-500.0,0.00015939,2]
[419693969,1775301042042,-154.6173872,0.00015941,2]
[419693970,1775301042052,-1000.0,0.00015953,2]
[419693971,1775301042062,-500.0,0.00015973,2]
[419693972,1775301042071,-461.35735938,0.00015973,2]
[419693973,1775301042081,-212.96330975,0.00015984,2]
[419693974,1775301042092,-208.73927085,0.00015984,2]
[419693975,1775301042103,-194.22721313,0.00015984,2]
[419693976,1775301042113,-156.81177881,0.00015984,2]
[419693977,1775301042123,-1000.0,0.00015985,2]
[419693978,1775301042133,-151.0,0.00015997,2]
[419693979,1775301042143,-248.0,0.00015997,2]
[419693980,1775301042153,-500.0,0.00015998,2]
[419693981,1775301042164,-670.84839751,0.00015999,2]
[419693982,1775301042176,-666.0,0.00015999,2]
[419693983,1775301042185,-500.0,0.00015999,2]
[419693984,1775301042195,-500.0,0.00015999,2]
[419693985,1775301042204,-500.0,0.00015999,2]
[419693986,1775301042214,-500.0,0.00015999,2]
[419693987,1775301042227,-500.0,0.00015999,2]
[419693988,1775301042237,-500.0,0.00015999,2]
[419693989,1775301042247,-500.0,0.00015999,2]
[419693990,1775301042257,-500.0,0.00015999,2]
[419693991,1775301042267,-500.0,0.00015999,2]
[419693992,1775301042277,-500.0,0.00015999,2]
[419693993,1775301042286,-500.0,0.00015999,2]
[419693994,1775301042296,-500.0,0.00015999,2]
[419693995,1775301042305,-500.0,0.00015999,2]
[419693996,1775301042314,-500.0,0.00015999,2]
[419693997,1775301042324,-500.0,0.00015999,2]
[419693998,1775301042333,-500.0,0.00015999,2]
[419693999,1775301042342,-500.0,0.00015999,2]
[419694000,1775301042352,-500.0,0.00015999,2]
[419694001,1775301042361,-500.0,0.00015999,2]
[419694002,1775301042371,-500.0,0.00015999,2]
[419694003,1775301042380,-500.0,0.00015999,2]
[419694004,1775301042389,-500.0,0.00015999,2]
[419694005,1775301042409,-500.0,0.00015999,2]
[419694006,1775301042420,-500.0,0.00015999,2]
[419694007,1775301042430,-500.0,0.00015999,2]
[419694008,1775301042440,-500.0,0.00015999,2]
[419694009,1775301042450,-500.0,0.00015999,2]
[419694010,1775301042460,-500.0,0.00015999,2]
[419694011,1775301042470,-500.0,0.00015999,2]
[419694012,1775301042479,-500.0,0.00015999,2]
[419694013,1775301042489,-500.0,0.00015999,2]
[419694014,1775301042499,-500.0,0.00015999,2]
[419694015,1775301042509,-520.24272845,0.00015999,2]
[419694017,1775301042519,-500.0,0.00015999,2]
[419694019,1775301042528,-500.0,0.00015999,2]
[419694020,1775301042538,-306.49401975,0.00015999,2]
[419694021,1775301042548,-500.0,0.00015999,2]
[419694022,1775301042558,-500.0,0.00015999,2]
[419694023,1775301042567,-500.0,0.00015999,2]
[419694026,1775301042578,-500.0,0.00015999,2]
[419694029,1775301042587,-500.0,0.00015999,2]
[419694031,1775301042597,-200.0,0.00015999,2]
[419694033,1775301042607,-4287.0,0.00016,5]
[419694035,1775301042618,-3430.0,0.00016,5]
[419694036,1775301042627,-274.81594908,0.00016,2]
[419694037,1775301042637,-258.12173445,0.00016,2]
[419694038,1775301042647,-184.12346237,0.00016,2]
[419694039,1775301042657,-267.43073148,0.00016,2]
[419694040,1775301042667,-185.86725558,0.00016,2]
[419694041,1775301042677,-207.13368262,0.00016,2]
[419694042,1775301042698,-245.90319664,0.00016,2]
[419694043,1775301042708,-203846.3543505,0.00016,2]
[419694044,1775301042718,-1202771.41334009,0.00016,2]
[419694062,1775301044347,-2476.93349673,0.00016,2]
[419694068,1775301045815,-310.546,0.00016,2]
[419694070,1775302158372,-503.0,0.00013111,2]
[419694071,1775302158394,-347.0,0.00013111,2]
[419694072,1775302158415,-300.0,0.00013727,2]
[419694073,1775302158435,-300.0,0.00013727,2]
[419694074,1775302158455,-151.0,0.00013806,2]
[419694075,1775302158476,-151.0,0.0001382,2]
[419694076,1775302158497,-182.17717018,0.00013999,2]